bitfinex-derivatives/quotes_SOLF0:USTF0_20250709
["timestamp","ask_amount","ask_price","bid_price","bid_amount"]
[1752044269219,10.4374993,152.85,152.83,6.5421]
[1752044269424,2.40780008,152.84,152.82,0.04677464]
[1752044269721,2.40780008,152.83,152.82,0.04677464]
[1752044270625,2.40780008,152.83,152.82,6.58927464]
[1752044271524,189.75562403,152.88,152.82,6.58927464]
[1752044271723,2.40780008,152.83,152.82,6.58927464]
[1752044273426,10.446059,152.83,152.82,6.58927464]
[1752044275122,2.40780008,152.83,152.82,6.58927464]
[1752044275328,2.40780008,152.84,152.83,6.5423]
[1752044275528,10.42948069,152.84,152.83,6.5423]
[1752044282426,182.53763839,152.85,152.83,6.5423]
[1752044282633,2.40780008,152.84,152.83,6.5423]
[1752044283635,190.84780008,152.84,152.83,6.5423]
[1752044284338,196.17265253,152.84,152.83,6.5423]
[1752044284732,193.76485245,152.84,152.83,6.5423]
[1752044286236,188.44,152.84,152.83,6.5423]
[1752044287340,193.03999203,152.84,152.83,6.5423]
[1752044289340,188.44,152.84,152.83,6.5423]
[1752044292242,183.53454097,152.84,152.83,6.5423]
[1752044292442,185.94492683,152.84,152.83,6.5423]
[1752044292638,185.94492683,152.84,152.78,4.4725]
[1752044292844,2.41038586,152.83,152.79,2.41038586]
[1752044293546,2.41038586,152.83,152.82,6.5425]
[1752044294544,10.36303183,152.83,152.82,6.5425]
[1752044295449,6.58426761,152.85,152.84,6.5419]
[1752044295450,0.04266761,152.85,152.84,6.5419]
[1752044295645,0.04266761,152.85,152.84,8.95228586]
[1752044296352,173.72803303,152.87,152.86,6.541]
[1752044296647,181.65952238,152.87,152.86,6.541]
[1752044297342,178.38960427,152.87,152.85,6.5414]
[1752044297542,170.45811492,152.87,152.85,6.5414]
[1752044297950,172.86850078,152.87,152.85,6.5414]
[1752044298951,2.41038586,152.87,152.85,6.5414]
[1752044299152,190.79038586,152.87,152.85,6.5414]
[1752044299455,2.41038586,152.87,152.85,6.5414]
[1752044299652,197.33108586,152.87,152.85,6.5414]
[1752044301548,6.541,152.86,152.84,6.5418]
[1752044301753,8.95138586,152.86,152.84,6.5418]
[1752044302151,14.50563869,152.85,152.83,6.58496084]
[1752044302352,2.41038586,152.86,152.83,6.58496084]
[1752044302552,7.96417792,152.85,152.83,6.58496084]
[1752044302747,8.95158586,152.86,152.83,6.58496084]
[1752044303050,7.96417792,152.85,152.83,6.58496084]
[1752044303252,8.95158586,152.86,152.83,6.58496084]
[1752044303452,7.96412539,152.85,152.83,6.58496084]
[1752044303650,8.95158586,152.86,152.83,6.58496084]
[1752044303850,7.96412539,152.85,152.83,6.58496084]
[1752044304049,8.95158586,152.86,152.83,6.58496084]
[1752044304254,7.96412539,152.85,152.83,6.58496084]
[1752044304453,8.95158586,152.86,152.84,6.5418]
[1752044304653,11.95846175,152.85,152.84,6.5418]
[1752044308855,12.08941005,152.85,152.84,6.5418]
[1752044309149,7.95502184,152.85,152.84,6.5418]
[1752044309455,12.08940309,152.85,152.84,6.5418]
[1752044312355,7.95502184,152.85,152.84,6.5418]
[1752044312655,7.95502184,152.85,152.83,6.58476084]
[1752044312856,8.95158586,152.86,152.83,6.58476084]
[1752044313060,7.96399934,152.85,152.83,6.58476084]
[1752044313354,8.95158586,152.86,152.83,6.58476084]
[1752044313555,7.96404605,152.85,152.84,6.5419]
[1752044314556,7.96400205,152.85,152.84,6.5419]
[1752044314758,8.74047606,152.86,152.84,6.5419]
[1752044316352,2.41038586,152.86,152.84,6.5419]
[1752044320761,2.41038586,152.86,152.85,6.5415]
[1752044324363,2.41038586,152.86,152.84,6.5417]
[1752044332870,5.68120461,152.87,152.84,6.5417]
[1752044333168,7.93185164,152.86,152.85,6.5415]
[1752044333769,2.41038586,152.87,152.85,6.5415]
[1752044334070,2.41038586,152.87,152.86,6.541]
[1752044334466,2.41038586,152.88,152.86,6.541]
[1752044337870,2.41038586,152.88,152.87,6.5406]
[1752044339070,174.55949267,152.89,152.87,6.5406]
[1752044340274,172.14910681,152.89,152.88,6.5402]
[1752044340472,174.55949267,152.89,152.88,6.5402]
[1752044340672,168.02016092,152.89,152.88,6.5402]
[1752044341571,190.65038586,152.9,152.88,6.5402]
[1752044341774,2.41038586,152.9,152.88,6.5402]
[1752044341976,190.65038586,152.9,152.88,6.5402]
[1752044342677,6.5391,152.91,152.89,6.5397]
[1752044342976,2.41038586,152.9,152.89,6.5397]
[1752044343668,2.41038586,152.91,152.89,6.5397]
[1752044344571,8.94928586,152.91,152.89,6.5397]
[1752044344771,2.41038586,152.9,152.86,0.04638192]
[1752044344978,2.41038586,152.87,152.86,0.04638192]
[1752044345173,2.41038586,152.87,152.86,6.58718192]
[1752044349384,2.41038586,152.88,152.86,6.58718192]
[1752044352688,2.41038586,152.87,152.86,6.58718192]
[1752044353187,2.41038586,152.88,152.86,6.58718192]
[1752044354487,2.41038586,152.87,152.86,0.04638192]
[1752044355790,8.95098586,152.87,152.86,0.04638192]
[1752044358692,2.41038586,152.87,152.86,0.04638192]
[1752044359591,8.95098586,152.87,152.86,0.04638192]
[1752044359788,8.09155589,152.87,152.86,0.04638192]
[1752044360996,2.41038586,152.87,152.81,14.60723374]
[1752044361196,2.41038586,152.85,152.81,14.60723374]
[1752044361593,2.41038586,152.85,152.81,2.41038586]
[1752044362191,2.45299566,152.85,152.81,2.41038586]
[1752044363691,0.0426098,152.85,152.84,6.5419]
[1752044364595,2.41038586,152.86,152.84,6.5419]
[1752044366904,2.41038586,152.85,152.84,6.5419]
[1752044369906,2.41038586,152.86,152.84,6.5419]
[1752044372308,8.95138586,152.86,152.83,6.58543457]
[1752044372607,2.41038586,152.85,152.83,6.58543457]
[1752044372807,2.41038586,152.85,152.84,6.5419]
[1752044378314,8.95148586,152.86,152.83,6.58563457]
[1752044378705,2.41038586,152.85,152.83,0.04333457]
[1752044378912,2.41038586,152.85,152.83,6.58543457]
[1752044379215,2.41038586,152.84,152.83,0.04333457]
[1752044380516,2.41038586,152.84,152.83,6.58563457]
[1752044381415,2.41038586,152.85,152.83,6.58563457]
[1752044383016,6.5408,152.87,152.84,6.5418]
[1752044383219,2.41038586,152.86,152.84,6.5418]
[1752044384812,348.2388127,152.89,152.84,6.5418]
[1752044385018,2.41038586,152.86,152.84,6.5418]
[1752044385917,188.12,152.88,152.86,6.541]
[1752044386118,2.41038586,152.87,152.83,0.04333457]
[1752044386416,2.41038586,152.86,152.83,0.04333457]
[1752044387517,2.41038586,152.86,152.85,6.5412]
[1752044388520,173.26551806,152.89,152.83,2.45372043]
[1752044388724,2.41038586,152.88,152.84,2.41038586]
[1752044389020,2.41038586,152.88,152.85,2.41038586]
[1752044389517,2.41038586,152.88,152.86,6.5408]
[1752044390713,6.5395,152.9,152.87,6.5406]
[1752044390913,188.1,152.9,152.85,2.41038586]
[1752044391114,2.41038586,152.89,152.85,2.41038586]
[1752044391319,2.41038586,152.89,152.86,0.04281349]
[1752044392523,2.41038586,152.89,152.87,6.5403]
[1752044395222,8.95018586,152.89,152.86,6.58361349]
[1752044395523,2.41038586,152.87,152.86,0.04281349]
[1752044397025,194.6201,152.89,152.86,0.04281349]
[1752044397227,2.41038586,152.87,152.86,6.58381349]
[1752044400326,2.41038586,152.87,152.86,0.04281349]
[1752044401130,2.41038586,152.87,152.86,6.58381349]
[1752044402631,2.41038586,152.87,152.86,0.04281349]
[1752044404132,2.41038586,152.87,152.86,6.58381349]
[1752044404533,2.41038586,152.87,152.86,0.04281349]
[1752044406434,6.5402,152.88,152.86,0.04281349]
[1752044406733,2.41038586,152.87,152.86,0.04281349]
[1752044409837,8.95098586,152.87,152.86,0.04281349]
[1752044411638,2.41038586,152.87,152.86,0.04281349]
[1752044413830,8.95098586,152.87,152.86,0.04281349]
[1752044415639,6.5419,152.84,152.81,6.543]
[1752044415842,2.41038586,152.82,152.81,6.543]
[1752044416943,2.41038586,152.83,152.82,6.5425]
[1752044417146,0.04515779,152.83,152.81,2.41038586]
[1752044417646,0.04515779,152.83,152.82,6.5428]
[1752044422242,2.41038586,152.84,152.8,4.71908586]
[1752044422448,2.41038586,152.84,152.83,6.5423]
[1752044423648,2.41038586,152.86,152.82,2.41038586]
[1752044423947,182.33526456,152.87,152.84,2.41038586]
[1752044424147,182.33526456,152.87,152.86,6.541]
[1752044424947,179.9248787,152.87,152.86,6.541]
[1752044425745,175.02034005,152.87,152.86,6.541]
[1752044426440,2.41038586,152.89,152.88,6.54]
[1752044426647,2.41038586,152.9,152.86,2.41038586]
[1752044426849,2.41038586,152.9,152.86,4.61558586]
[1752044427044,2.41038586,152.9,152.86,4.65934886]
[1752044427953,2.41038586,152.9,152.88,6.5399]
[1752044430153,2.41038586,152.9,152.89,6.5398]
[1752044430354,9.179249,152.94,152.88,2.41038586]
[1752044430554,2.2813,152.96,152.9,6.5391]
[1752044430555,2.41038586,152.92,152.9,6.5391]
[1752044430751,2.41038586,152.91,152.9,6.5391]
[1752044431148,2.41038586,152.91,152.89,6.58111163]
[1752044431351,2.41038586,152.91,152.89,0.04161163]
[1752044432257,2.41038586,152.91,152.9,6.5393]
[1752044437264,2.41038586,152.91,152.89,0.04161163]
[1752044437865,2.41038586,152.91,152.9,6.5393]
[1752044438368,2.41038586,152.93,152.92,6.5385]
[1752044438565,2.41038586,152.93,152.89,2.45199749]
[1752044438764,2.41038586,152.93,152.89,2.41038586]
[1752044439069,2.41038586,152.93,152.89,2.45544321]
[1752044439269,6.5372,152.95,152.89,2.45544321]
[1752044439469,2.41038586,152.93,152.89,2.45544321]
[1752044440067,2.41038586,152.95,152.91,2.41038586]
[1752044440662,2.41038586,152.95,152.91,4.68026268]
[1752044441070,2.41038586,152.95,152.94,6.5376]
[1752044441467,2.41038586,152.95,152.91,2.26987682]
[1752044441668,6.5371,152.96,152.91,2.26987682]
[1752044441867,2.41038586,152.93,152.91,2.26987682]
[1752044442270,2.41038586,152.93,152.92,6.5385]
[1752044443272,6.5371,152.96,152.92,6.5385]
[1752044443473,2.41038586,152.93,152.92,6.5385]
[1752044453971,6.5369,152.96,152.93,6.5379]
[1752044454170,2.41038586,152.94,152.93,6.5379]
[1752044455268,6.5365,152.97,152.94,6.5375]
[1752044455474,2.41038586,152.95,152.94,6.5375]
[1752044456478,2.41038586,152.95,152.93,6.58212265]
[1752044456675,2.41038586,152.94,152.93,6.58212265]
[1752044457176,2.41038586,152.94,152.93,0.04422265]
[1752044463680,9.16363905,153.0,152.93,0.04422265]
[1752044463875,565.0,153.01,152.93,2.45460851]
[1752044464079,2.41038586,152.96,152.93,0.04422265]
[1752044464275,2.41038586,152.95,152.94,6.5373]
[1752044464682,2.41038586,152.95,152.93,0.04422265]
[1752044464881,2.41038586,152.94,152.93,6.58202265]
[1752044465982,6.5363,152.98,152.94,6.5374]
[1752044466186,2.41038586,152.95,152.93,0.04422265]
[1752044466477,2.41038586,152.94,152.93,6.58222265]
[1752044469186,2.41038586,152.95,152.94,6.5375]
[1752044470189,6.536,152.98,152.94,6.5375]
[1752044470387,7.81675403,152.97,152.94,6.5375]
[1752044470587,6.536,152.98,152.94,6.5375]
[1752044470784,2.41038586,152.95,152.94,6.5375]
[1752044474691,6.536,152.98,152.94,6.5375]
[1752044474888,2.41038586,152.95,152.94,6.5375]
[1752044481990,2.41038586,152.99,152.93,0.04422265]
[1752044482191,2.41038586,152.98,152.94,2.41038586]
[1752044482491,2.41038586,152.97,152.96,6.5367]
[1752044485100,2.41038586,152.97,152.95,6.58120369]
[1752044485300,2.41038586,152.96,152.95,6.58120369]
[1752044485900,2.41038586,152.97,152.96,6.5367]
[1752044486801,2.41038586,152.99,152.95,2.45458955]
[1752044487198,2.41038586,152.99,152.96,2.41038586]
[1752044487402,6.5344,153.02,152.96,2.41038586]
[1752044487403,196.2144,153.02,152.98,6.5356]
[1752044487599,211.54610652,153.04,152.97,2.41038586]
[1752044487600,7.89401531,153.01,152.97,2.41038586]
[1752044487801,2.41038586,153.01,152.98,6.5358]
[1752044488001,2.41038586,153.0,152.97,2.45799102]
[1752044488200,6.5345,153.02,152.97,0.04760516]
[1752044488506,2.41038586,153.0,152.99,6.5353]
[1752044488906,6.5345,153.02,152.99,6.5353]
[1752044489102,2.41038586,153.0,152.99,6.5353]
[1752044490709,2.41038586,153.0,152.97,0.04760516]
[1752044491009,392.19718822,153.04,152.97,0.04760516]
[1752044491010,2.41038586,152.98,152.97,0.04760516]
[1752044492409,2.41038586,152.98,152.97,6.58390516]
[1752044496005,6.5353,153.0,152.97,6.58390516]
[1752044496208,2.41038586,152.98,152.97,6.58390516]
[1752044499615,2.41038586,152.98,152.97,0.04760516]
[1752044500114,9.1689183,153.03,152.97,6.58390516]
[1752044500313,2.41038586,152.98,152.97,6.58390516]
[1752044500917,2.41038586,152.98,152.97,0.04760516]
[1752044501312,196.1157,152.99,152.97,0.04760516]
[1752044501515,2.41038586,152.98,152.97,0.04760516]
[1752044507324,10.26934079,152.98,152.97,0.04760516]
[1752044510627,7.85895493,152.98,152.97,0.04760516]
[1752044510828,10.26934079,152.98,152.97,0.04760516]
[1752044512527,2.41038586,152.98,152.97,0.04760516]
[1752044519332,10.2656925,152.98,152.97,0.04760516]
[1752044522531,16.8015925,152.98,152.97,0.04760516]
[1752044522836,10.2656925,152.98,152.92,2.2608]
[1752044523033,2.41038586,152.93,152.92,2.2608]
[1752044523234,2.41038586,152.93,152.92,8.799]
[1752044524130,2.41038586,152.93,152.86,18.24151475]
[1752044524336,2.41038586,152.91,152.87,2.1766]
[1752044524537,2.41038586,152.9,152.87,4.58698586]
[1752044524835,2.41038586,152.88,152.85,2.1604]
[1752044525035,2.41038586,152.86,152.83,2.41038586]
[1752044525237,2.41038586,152.86,152.81,20.41811475]
[1752044525238,2.41038586,152.86,152.85,6.5414]
[1752044530245,0.04306249,152.87,152.86,6.541]
[1752044530444,2.45344835,152.87,152.86,6.541]
[1752044532940,8.99404835,152.87,152.81,2.1766]
[1752044533147,2.41038586,152.84,152.81,4.58698586]
[1752044533546,2.41038586,152.84,152.83,6.542]
[1752044533743,2.41038586,152.84,152.81,2.1766]
[1752044533945,2.41038586,152.83,152.81,2.1766]
[1752044534142,2.41038586,152.83,152.82,6.5427]
[1752044535045,3.81201884,152.84,152.82,6.5427]
[1752044535241,0.04536266,152.84,152.83,6.5423]
[1752044535544,3.81201884,152.84,152.83,6.5423]
[1752044536142,3.81201884,152.84,152.82,6.5426]
[1752044538451,3.81201884,152.84,152.79,2.1604]
[1752044538751,3.76665618,152.82,152.76,2.3728]
[1752044539250,3.76665618,152.82,152.79,6.5438]
[1752044539845,3.80964743,152.82,152.79,6.5438]
[1752044540646,10.35244743,152.82,152.78,6.5443]
[1752044542048,10.35244743,152.82,152.79,6.5439]
[1752044542550,3.80964743,152.82,152.8,6.5436]
[1752044542747,3.80964743,152.82,152.76,2.3728]
[1752044543147,10.35254743,152.82,152.78,6.5441]
[1752044543547,10.35254743,152.82,152.76,2.3728]
[1752044545343,6.58589125,152.82,152.76,2.3728]
[1752044545548,0.04299125,152.82,152.78,3.76665618]
[1752044545748,0.04299125,152.82,152.77,3.76665618]
[1752044546252,0.04299125,152.82,152.81,6.5432]
[1752044556955,2.45399582,152.82,152.81,6.5432]
[1752044559655,2.45399582,152.82,152.76,2.3728]
[1752044559855,2.41100457,152.79,152.76,2.3728]
[1752044560055,2.41100457,152.79,152.78,6.5444]
[1752044562057,189.48,152.81,152.76,2.3728]
[1752044562257,2.41100457,152.79,152.76,2.3728]
[1752044562556,2.41100457,152.79,152.76,4.78380457]
[1752044563358,2.41100457,152.79,152.78,6.5444]
[1752044563559,2.41100457,152.8,152.76,4.78380457]
[1752044564160,2.41100457,152.8,152.79,6.544]
[1752044571064,2.41100457,152.8,152.78,6.5443]
[1752044571262,2.41100457,152.79,152.76,2.3728]
[1752044572064,2.41100457,152.79,152.78,6.5444]
[1752044573867,2.41100457,152.79,152.74,2.2237]
[1752044574068,2.41100457,152.78,152.74,4.63470457]
[1752044574464,2.41100457,152.77,152.74,4.63470457]
[1752044574971,2.45307781,152.77,152.74,4.63470457]
[1752044575266,0.04207324,152.77,152.76,6.5453]
[1752044575465,2.45307781,152.77,152.76,6.5453]
[1752044576368,2.45307781,152.77,152.75,6.5456]
[1752044576565,2.41100457,152.76,152.75,6.5456]
[1752044577176,2.41100457,152.76,152.72,2.1685]
[1752044577465,2.41100457,152.73,152.72,2.1685]
[1752044577669,2.41100457,152.74,152.73,6.5466]
[1752044577870,2.41100457,152.75,152.72,2.1685]
[1752044578273,2.41100457,152.75,152.74,6.5458]
[1752044580475,6.58707324,152.77,152.74,6.5458]
[1752044580667,0.04207324,152.77,152.73,2.41100457]
[1752044580968,2.45307781,152.77,152.73,2.41100457]
[1752044581169,2.45307781,152.77,152.75,6.5455]
[1752044583676,2.45307781,152.77,152.76,6.5453]
[1752044586675,0.04207324,152.77,152.76,6.5453]
[1752044586871,2.45307781,152.77,152.76,6.5453]
[1752044588180,0.04207324,152.77,152.76,6.5453]
[1752044588876,2.45307781,152.77,152.76,6.5453]
[1752044591478,0.04207324,152.77,152.76,6.5453]
[1752044591678,2.45307781,152.77,152.73,2.41100457]
[1752044591880,2.41100457,152.76,152.73,2.41100457]
[1752044592577,2.41100457,152.76,152.74,6.5458]
[1752044592782,2.45307781,152.77,152.74,6.5458]
[1752044592978,2.41100457,152.76,152.74,6.5458]
[1752044595982,2.41100457,152.76,152.72,2.41100457]
[1752044596985,2.41100457,152.76,152.71,12.185145]
[1752044597185,2.41100457,152.76,152.72,2.41100457]
[1752044597681,2.41100457,152.76,152.74,6.5457]
[1752044598782,2.41100457,152.75,152.71,12.185145]
[1752044598984,189.3,152.74,152.66,18.24151475]
[1752044599192,2.41534233,152.7,152.63,2.168]
[1752044599382,2.41534233,152.7,152.66,2.41534233]
[1752044600192,755.02,152.76,152.69,2.41534233]
[1752044600384,2.41534233,152.73,152.7,2.41534233]
[1752044600890,2.41534233,152.74,152.72,6.5467]
[1752044601289,2.41534233,152.74,152.7,2.41534233]
[1752044602380,4.42134567,152.73,152.7,2.41534233]
[1752044602584,2.41534233,152.74,152.7,2.41534233]
[1752044602882,4.42114233,152.73,152.7,2.41534233]
[1752044603081,2.41534233,152.74,152.73,6.5466]
[1752044603279,6.83585156,152.74,152.73,6.5466]
[1752044603481,4.42050923,152.74,152.73,6.5466]
[1752044603880,9.1663439,152.82,152.76,6.5449]
[1752044604087,16.31169256,152.81,152.76,2.41534233]
[1752044604287,2.41534233,152.81,152.77,2.41534233]
[1752044604488,2.41534233,152.81,152.78,2.41534233]
[1752044604992,2.41534233,152.82,152.8,6.5432]
[1752044605293,2.41534233,152.82,152.78,2.41534233]
[1752044605791,2.41534233,152.82,152.77,2.41534233]
[1752044605994,2.41534233,152.81,152.77,2.41534233]
[1752044606793,3.76735877,152.82,152.75,3.76735877]
[1752044608593,3.76735877,152.82,152.79,6.5436]
[1752044610089,3.76735877,152.82,152.8,6.5435]
[1752044610390,193.28735877,152.82,152.8,6.5435]
[1752044611395,3.76735877,152.82,152.8,6.5435]
[1752044611601,193.22735877,152.82,152.8,6.5435]
[1752044611896,193.22735877,152.82,152.79,6.5439]
[1752044612597,3.76735877,152.8,152.78,6.5443]
[1752044615904,4.38767105,152.79,152.78,6.5443]
[1752044616603,4.38797466,152.79,152.78,6.5443]
[1752044618901,3.76735877,152.8,152.79,6.544]
[1752044619101,8.15597112,152.8,152.79,6.544]
[1752044626819,6.7999985,152.8,152.79,6.544]
[1752044631122,195.9799985,152.8,152.79,6.544]
[1752044632621,191.59138615,152.8,152.79,6.544]
[1752044632920,1.809e-05,152.87,152.79,2.40934187]
[1752044633125,4.30499895,152.86,152.83,2.40934187]
[1752044633418,4.30499895,152.85,152.83,2.40934187]
[1752044633617,6.5248746,152.87,152.83,2.40934187]
[1752044633824,2.40934187,152.87,152.83,2.40934187]
[1752044634023,2.40934187,152.87,152.86,6.541]
[1752044634325,6.52426473,152.87,152.86,6.541]
[1752044634925,4.11492286,152.87,152.86,6.541]
[1752044639028,378.52,152.88,152.87,6.5406]
[1752044639426,357.7512,152.88,152.87,10.3042725]
[1752044639727,163.64316207,152.88,152.87,10.3042725]
[1752044640830,3.7636725,152.93,152.9,6.5389]
[1752044641024,378.48,152.92,152.9,6.5389]
[1752044651936,3.7636725,152.91,152.89,0.04522385]
[1752044652128,378.06,152.9,152.83,3.7636725]
[1752044652325,378.06,152.9,152.87,6.5403]
[1752044652923,378.06,152.9,152.83,3.7636725]
[1752044653624,0.04296413,152.88,152.83,3.7636725]
[1752044653828,378.04,152.87,152.83,3.7636725]
[1752044654735,378.04,152.87,152.86,6.541]
[1752044661933,378.04,152.87,152.85,6.5411]
[1752044662241,378.04,152.87,152.83,3.7636725]
[1752044662837,378.04,152.87,152.85,2.40870876]
[1752044663633,378.04,152.87,152.82,4.6352]
[1752044663834,378.04,152.87,152.84,2.40870876]
[1752044665141,378.04,152.87,152.85,6.5414]
[1752044665845,378.04,152.87,152.86,6.541]
[1752044666241,380.44870876,152.87,152.82,4.6352]
[1752044666445,2.40870876,152.83,152.8,6.5433]
[1752044666744,377.7,152.82,152.8,6.5433]
[1752044667342,377.7,152.82,152.81,6.5432]
[1752044667945,380.10870876,152.82,152.8,6.5434]
[1752044668534,380.10870876,152.82,152.78,2.40870876]
[1752044668943,377.7,152.82,152.77,2.214]
[1752044669135,377.7,152.82,152.81,6.5432]
[1752044671843,377.7,152.82,152.8,6.5435]
[1752044672336,377.7,152.82,152.74,2.1722]
[1752044672537,3.76711203,152.81,152.74,2.1722]
[1752044672746,377.68,152.8,152.74,2.1722]
[1752044673242,0.0497502,152.79,152.77,6.5446]
[1752044673441,377.92,152.78,152.77,6.5446]
[1752044679140,0.00452635,152.79,152.78,6.5444]
[1752044679347,377.96452635,152.79,152.78,10.31151203]
[1752044679541,0.00452635,152.79,152.78,10.31151203]
[1752044681549,377.94,152.81,152.8,6.5436]
[1752044681746,377.94,152.81,152.78,3.76711203]
[1752044681747,377.94,152.82,152.78,3.76711203]
[1752044682048,377.94,152.82,152.81,6.5432]
[1752044683745,8.24731203,152.88,152.85,6.5412]
[1752044683944,377.9,152.87,152.85,6.5412]
[1752044684445,377.9,152.87,152.86,6.541]
[1752044685449,575.18711203,152.89,152.87,6.5406]
[1752044685450,568.64711203,152.89,152.87,6.5406]
[1752044685644,378.1,152.88,152.87,6.5406]
[1752044694353,378.1,152.88,152.84,0.04140561]
[1752044694555,3.76711203,152.85,152.84,0.04140561]
[1752044694753,381.62711203,152.85,152.84,0.04140561]
[1752044695356,388.16851203,152.85,152.77,3.76711203]
[1752044697660,388.16851203,152.85,152.82,6.5427]
[1752044698460,381.62711203,152.85,152.82,6.5427]
[1752044699064,381.62711203,152.85,152.83,6.5423]
[1752044700559,381.62711203,152.85,152.82,6.5425]
[1752044702764,381.62711203,152.85,152.83,6.5423]
[1752044707067,377.86,152.85,152.83,6.5423]
[1752044707265,381.62711203,152.85,152.83,6.5423]
[1752044711566,388.16851203,152.85,152.83,6.5423]
[1752044712868,381.62711203,152.85,152.83,6.5423]
[1752044715068,388.16861203,152.85,152.83,6.5423]
[1752044718770,2.4102717,152.84,152.83,6.5423]
[1752044722274,377.32,152.84,152.8,2.4102717]
[1752044722473,379.7302717,152.84,152.81,2.4102717]
[1752044722772,377.32,152.84,152.81,2.4102717]
[1752044724077,379.7302717,152.84,152.81,2.4102717]
[1752044725075,379.7302717,152.84,152.82,6.5427]
[1752044726279,377.32,152.84,152.82,6.5427]
[1752044726479,377.32,152.84,152.81,2.4102717]
[1752044726985,379.7302717,152.84,152.81,2.4102717]
[1752044727583,379.7302717,152.84,152.82,6.5424]
[1752044728383,379.7302717,152.84,152.83,6.5423]
[1752044732090,377.32,152.84,152.83,6.5423]
[1752044732388,379.7302717,152.84,152.83,6.5423]
[1752044733181,377.32,152.84,152.83,6.5423]
[1752044735088,9.15396615,152.9,152.83,2.4102717]
[1752044735287,385.36713912,152.89,152.88,2.4102717]
[1752044735483,377.3,152.89,152.88,2.4102717]
[1752044735683,377.3,152.89,152.88,8.9504717]
[1752044738584,377.3,152.89,152.88,6.5402]
[1752044743394,379.7102717,152.89,152.87,6.58576592]
[1752044745395,2.4102717,152.88,152.87,6.58576592]
[1752044752500,2.4102717,152.88,152.87,0.04526592]
[1752044752694,377.3,152.89,152.87,0.04526592]
[1752044752893,2.4102717,152.88,152.87,0.04526592]
[1752044755597,2.4102717,152.88,152.87,6.58586592]
[1752044756796,377.3,152.89,152.87,6.58586592]
[1752044757000,377.12,152.88,152.87,2.45553762]
[1752044757700,377.12,152.88,152.87,6.58586592]
[1752044761000,377.12,152.88,152.87,8.99613762]
[1752044761498,377.12,152.88,152.87,6.58586592]
[1752044763100,377.12,152.88,152.87,8.99613762]
[1752044773101,377.12,152.88,152.87,6.58586592]
[1752044773404,379.5302717,152.88,152.87,0.04526592]
[1752044773998,386.0704717,152.88,152.87,0.04526592]
[1752044774504,379.5302717,152.88,152.87,0.04526592]
[1752044778506,379.5302717,152.88,152.84,6.5417]
[1752044778706,2.4102717,152.85,152.84,6.5417]
[1752044778907,379.5302717,152.85,152.8,2.4102717]
[1752044779206,2.4102717,152.84,152.8,2.4102717]
[1752044779407,377.12,152.83,152.8,2.4102717]
[1752044780208,377.12,152.83,152.79,2.2928]
[1752044780508,377.12,152.83,152.82,6.5427]
[1752044800614,379.5302717,152.83,152.76,20.37971475]
[1752044800817,379.5302717,152.83,152.79,2.4102717]
[1752044801518,379.5302717,152.83,152.81,6.5429]
[1752044802919,379.5302717,152.83,152.82,6.5427]
[1752044810520,379.5302717,152.83,152.78,2.4102717]
[1752044810718,2.4102717,152.82,152.78,2.4102717]
[1752044810917,377.22,152.81,152.78,2.4102717]
[1752044811114,377.22,152.81,152.79,6.544]
[1752044814727,377.22,152.81,152.8,6.5436]
[1752044822031,379.6302717,152.81,152.77,2.4102717]
[1752044822225,2.4102717,152.8,152.76,2.4102717]
[1752044822430,377.2,152.79,152.77,2.4102717]
[1752044823434,377.2,152.79,152.78,6.5445]
[1752044826740,379.6102717,152.79,152.77,6.5448]
[1752044826933,2.4102717,152.78,152.74,2.4102717]
[1752044827139,379.6102717,152.77,152.73,2.4102717]
[1752044827341,377.2,152.76,152.73,2.4102717]
[1752044828542,377.2,152.76,152.75,6.5457]
[1752044829338,377.22,152.77,152.75,2.4102717]
[1752044829646,377.22,152.77,152.76,2.4102717]
[1752044830547,377.22,152.77,152.76,8.9555717]
[1752044831646,379.6302717,152.77,152.76,6.5453]
[1752044831943,377.22,152.77,152.76,6.5453]
[1752044832346,377.22,152.77,152.76,8.9555717]
[1752044833949,377.22,152.77,152.76,6.5453]
[1752044840352,379.6302717,152.77,152.76,6.5453]
[1752044840557,379.6302717,152.77,152.72,4.6137717]
[1752044840757,2.4102717,152.76,152.72,2.4102717]
[1752044840957,377.24,152.75,152.72,2.4102717]
[1752044841655,377.24,152.75,152.74,6.5458]